fUST/lending_fUST_20260220
["ID","MTS","AMOUNT","RATE_DAILY","PERIOD"]
[406013437,1771548646247,-1000.0,0.000106,2]
[406013438,1771548646255,-1000.0,0.000106,2]
[406013439,1771548646264,-1000.0,0.000106,2]
[406013440,1771548646273,-197.31758854,0.000106,2]
[406013441,1771548646282,-347.51533851,0.000106,2]
[406013442,1771548780739,-336.635,9.74e-05,2]
[406013443,1771548780773,-122.435,9.838e-05,2]
[406013444,1771548780786,-81.86,9.838e-05,2]
[406013445,1771548780796,-254.775,9.838e-05,2]
[406013446,1771548780807,-179.617,9.838e-05,2]
[406013447,1771548780816,-24.678,9.838e-05,2]
[406013448,1771548789861,-501.1691,9.838e-05,2]
[406013449,1771548789873,-199.1529,9.838e-05,2]
[406013450,1771548789882,-195.509,9.838e-05,2]
[406013451,1771548789892,-104.169,9.838e-05,2]
[406013452,1771548829945,-47.018,9.838e-05,2]
[406013453,1771548938929,427.0,9.838e-05,2]
[406013454,1771548948893,478.964,9.838e-05,2]
[406013455,1771549243220,-1382.0,9.838e-05,2]
[406013456,1771549251794,1152.85034025,9.838e-05,2]
[406013457,1771549272425,-635.0,8.322e-05,2]
[406013483,1771549832238,-384.768375,8.075e-05,2]
[406013484,1771549832303,-336.635,8.075e-05,2]
[406013487,1771549838714,-307.36598586,8.075e-05,2]
[406013531,1771549846331,-2888.08097939,8.075e-05,2]
[406013532,1771549846340,-150.0,8.178e-05,2]
[406013533,1771549846349,-427.0,8.322e-05,2]
[406013534,1771549846359,-1200.0,9.836e-05,2]
[406013535,1771549846368,-1021.14965975,9.838e-05,2]
[406013536,1771549846377,-300.0,0.00010068,2]
[406013537,1771549846386,-394.42466163,0.0001007,2]
[406013538,1771549846395,-177.0,0.00010178,2]
[406013539,1771549846404,-426.0,0.000104,2]
[406013540,1771549846413,-197.31758854,0.000106,2]
[406013541,1771549846423,-426.45380717,0.00010618,2]
[406013542,1771549846431,-6405.3863379,0.00010676,2]
[406013543,1771549846440,-113.23631476,0.0001082,2]
[406013544,1771549846455,-580.38251828,0.0001082,2]
[406013591,1771551032513,-150.4052602,8.334e-05,2]
[406013592,1771551032523,-150.0,8.376e-05,2]
[406013593,1771551032532,-134.03657162,8.419e-05,2]
[406013612,1771551038696,-165.96342838,8.419e-05,2]
[406013613,1771551038705,-300.0,8.419e-05,2]
[406013614,1771551038715,-300.0,8.419e-05,2]
[406013615,1771551038733,-300.0,8.419e-05,2]
[406013616,1771551038748,-1200.0,8.419e-05,2]
[406013617,1771551038758,-300.0,8.587e-05,2]
[406013618,1771551038768,-300.0,8.587e-05,2]
[406013619,1771551038777,-300.0,8.587e-05,2]
[406013620,1771551038786,-300.0,8.587e-05,2]
[406013621,1771551038795,-300.0,8.587e-05,2]
[406013622,1771551038804,-300.0,8.587e-05,2]
[406013623,1771551038815,-300.0,8.587e-05,2]
[406013624,1771551038825,-300.0,8.587e-05,2]
[406013625,1771551038834,-300.0,8.587e-05,2]
[406013626,1771551038844,-300.0,8.587e-05,2]
[406013627,1771551038854,-300.0,8.587e-05,2]
[406013628,1771551038863,-300.0,8.587e-05,2]
[406013630,1771551038872,-300.0,8.587e-05,2]
[406013632,1771551038881,-300.0,8.587e-05,2]
[406013634,1771551038891,-300.0,8.587e-05,2]
[406013636,1771551038900,-600.0,8.758e-05,2]
[406013638,1771551038909,-420.0,9.261e-05,2]
[406013640,1771551038919,-1680.0,9.261e-05,2]
[406013642,1771551038928,-720.0,9.633e-05,2]
[406013644,1771551038938,-587.0,0.00010187,2]
[406013646,1771551038947,-1666.0,0.00010187,2]
[406013648,1771551038956,-177.0,0.00010376,2]
[406013650,1771551038965,-864.0,0.00010597,2]
[406013652,1771551038974,-197.31758854,0.0001082,2]
[406013653,1771551038983,-5000.0,0.00010959,2]
[406013654,1771551038992,-823.0,0.00011206,2]
[406013655,1771551039001,-151.0,0.0001141,2]
[406013656,1771551039010,-151.0,0.0001141,2]
[406013657,1771551039019,-151.0,0.0001141,2]
[406013658,1771551039028,-151.0,0.0001141,2]
[406013659,1771551039038,-151.0,0.0001141,2]
[406013660,1771551039047,-151.0,0.0001141,2]
[406013661,1771551039057,-151.0,0.0001141,2]
[406013662,1771551039067,-500.0,0.00011415,2]
[406013663,1771551039076,-500.0,0.00011415,2]
[406013664,1771551039085,-500.0,0.00011415,2]
[406013665,1771551039094,-500.0,0.00011415,2]
[406013666,1771551039104,-500.0,0.00011415,2]
[406013667,1771551039113,-500.0,0.00011415,2]
[406013668,1771551039122,-159.75880502,0.00011415,2]
[406013669,1771551039132,-500.0,0.00011416,2]
[406013670,1771551039141,-500.0,0.00011416,2]
[406013671,1771551039152,-1000.0,0.00011657,2]
[406013672,1771551039162,-160.0,0.000123,3]
[406013673,1771551039172,-160.0,0.000123,5]
[406013674,1771551039182,-500.0,0.000123,2]
[406013675,1771551039191,-1152.0,0.00012326,2]
[406013676,1771551039201,-614.5363946,0.00012329,2]
[406013677,1771551039210,-3013.43,0.00012329,2]
[406013678,1771551039220,-2511.19,0.00012329,2]
[406013679,1771551039230,-2092.66,0.00012329,2]
[406013680,1771551039240,-1743.88,0.00012329,2]
[406013681,1771551039249,-1453.24,0.00012329,2]
[406013682,1771551039260,-1211.03,0.00012329,2]
[406013683,1771551039280,-285.87341005,0.00012329,2]
[406013734,1771551046610,-1041.66666667,8.42e-05,2]
[406013737,1771551049604,-340.33333333,8.42e-05,2]
[406013738,1771551050731,2175.0,8.42e-05,2]
[406013739,1771551066313,-640.729,8.586e-05,2]
[406013740,1771551095525,-725.0,8.586e-05,2]
[406013741,1771551095552,-198.035,8.586e-05,2]
[406013742,1771551095577,-181.25542527,0.00011414,2]
[406013747,1771551744594,1000.0,0.0001,3]
[406013748,1771551787438,1000.0,0.0001,4]
[406013749,1771551804373,1000.0,0.0001,5]
[406013750,1771551822778,1000.0,0.0001,6]
[406013751,1771551872332,1000.0,0.0001,7]
[406013752,1771551892206,1000.0,0.0001,8]
[406013753,1771551907698,-150.0,0.0001,8]
[406013755,1771551919644,-150.0,0.0001,8]
[406013756,1771551921036,-150.0,0.0001,8]
[406013757,1771551922996,-150.0,0.0001,8]
[406013758,1771551957245,-150.0,0.0001,8]
[406013759,1771551958520,-150.0,0.0001,8]
[406013760,1771551968745,-150.0,0.0001,8]
[406013761,1771551970546,-150.0,0.0001,8]
[406013762,1771551981418,-150.0,0.0001,8]
[406013765,1771552069108,25000.0,8e-05,3]
[406013766,1771552134946,25000.0,7.5e-05,3]
[406013767,1771552134969,10000.0,7.5e-05,3]
[406013768,1771552178563,2995.8276599,7e-05,3]
[406013769,1771552202263,300.0,6.999e-05,2]
[406013931,1771552245724,-495.55200692,7e-05,3]
[406013932,1771552256941,3738.26644445,7e-05,2]
[406013933,1771552273124,500.0,6.999e-05,2]
[406013934,1771552279012,500.0,6.999e-05,2]
[406013935,1771552297115,297.95159345,6.999e-05,2]
[406013936,1771552302137,1231.06904796,7e-05,2]
[406013937,1771552322323,300.0,6.999e-05,2]
[406013938,1771552324396,1172.25521972,7e-05,2]
[406013939,1771552466699,500.0,6.999e-05,2]
[406013940,1771552483045,500.0,6.999e-05,2]
[406013941,1771552483078,500.0,6.999e-05,2]
[406013942,1771552483111,460.45769442,6.999e-05,2]
[406013943,1771552563152,10000.0,6.9e-05,3]
[406013944,1771552563181,93894.80995341,6.9e-05,3]
[406013945,1771552881776,-300.0,6.997e-05,2]
[406013946,1771552881803,-104.34212557,6.998e-05,2]
[406013947,1771552881843,-195.65787443,6.998e-05,2]
[406013948,1771552911039,-104.34212557,6.998e-05,2]
[406013949,1771552911062,-195.65787443,6.998e-05,2]
[406013954,1771553431775,-150.0,7.068e-05,2]
[406013955,1771553431784,-300.0,7.138e-05,2]
[406013956,1771553431793,-300.0,7.138e-05,2]
[406013957,1771553431802,-1200.0,7.138e-05,2]
[406013958,1771553431811,-300.0,7.139e-05,2]
[406013959,1771553431820,-300.0,7.139e-05,2]
[406013960,1771553431829,-300.0,7.139e-05,2]
[406013961,1771553431838,-211.15593286,7.139e-05,2]
[406013962,1771553431849,-88.84406714,7.139e-05,2]
[406013964,1771553431858,-300.0,7.139e-05,2]
[406013966,1771553431867,-300.0,7.139e-05,2]
[406013968,1771553431876,-284.15593286,7.139e-05,2]
[406014001,1771553437933,-15.84406714,7.139e-05,2]
[406014002,1771553437943,-300.0,7.139e-05,2]
[406014003,1771553437952,-300.0,7.139e-05,2]
[406014004,1771553437962,-113.32145967,7.139e-05,2]
[406014005,1771553437974,-186.67854033,7.139e-05,2]
[406014006,1771553437983,-300.0,7.139e-05,2]
[406014007,1771553437993,-300.0,7.139e-05,2]
[406014008,1771553438002,-300.0,7.139e-05,2]
[406014009,1771553438012,-300.0,7.139e-05,2]
[406014010,1771553438022,-300.0,7.139e-05,2]
[406014011,1771553438031,-600.0,7.139e-05,2]
[406014012,1771553438040,-420.0,7.852e-05,2]
[406014013,1771553438055,-233.0,7.852e-05,2]
[406014014,1771553438065,-720.0,7.853e-05,2]
[406014015,1771553438074,-150.199,8.586e-05,2]
[406014017,1771553438084,-232.038,8.586e-05,2]
[406014018,1771553438094,-1382.0,8.586e-05,2]
[406014019,1771553438103,-1475.976,8.586e-05,2]
[406014020,1771553438112,-635.0,8.586e-05,2]
[406014021,1771553438122,-587.0,8.637e-05,2]
[406014022,1771553438131,-864.0,8.638e-05,2]
[406014023,1771553438140,-150.0,8.723e-05,2]
[406014024,1771553438150,-161.17988562,8.778e-05,2]
[406014025,1771553438159,-500.0,8.997e-05,2]
[406014026,1771553438170,-500.0,8.997e-05,2]
[406014027,1771553438180,-500.0,8.997e-05,2]
[406014028,1771553438190,-500.0,8.997e-05,2]
[406014029,1771553438199,-500.0,8.997e-05,2]
[406014030,1771553438209,-500.0,8.997e-05,2]
[406014031,1771553438219,-500.0,8.997e-05,2]
[406014032,1771553438229,-500.0,8.997e-05,2]
[406014033,1771553438239,-500.0,8.997e-05,2]
[406014034,1771553438250,-500.0,8.997e-05,2]
[406014035,1771553438260,-500.0,8.997e-05,2]
[406014036,1771553438270,-500.0,8.997e-05,2]
[406014037,1771553438280,-500.0,8.997e-05,2]
[406014038,1771553438291,-491.88320713,8.997e-05,2]
[406014039,1771553438301,-500.0,8.997e-05,2]
[406014040,1771553438311,-500.0,8.997e-05,2]
[406014041,1771553438320,-500.0,8.997e-05,2]
[406014042,1771553438330,-500.0,8.997e-05,2]
[406014043,1771553438339,-500.0,8.997e-05,2]
[406014044,1771553438349,-287.50959565,8.997e-05,2]
[406014045,1771553438358,-500.0,8.997e-05,2]
[406014046,1771553438371,-177.0,9.068e-05,2]
[406014047,1771553438381,-500.0,9.271e-05,2]
[406014048,1771553438391,-176.0,9.501e-05,2]
[406014049,1771553438399,-1000.0,9.502e-05,2]
[406014050,1771553438410,-500.0,9.545e-05,2]
[406014051,1771553438420,-500.0,9.819e-05,2]
[406014052,1771553438430,-166.73243222,0.00010058,7]
[406014053,1771553438439,-500.0,0.00010093,2]
[406014054,1771553438450,-349.642,0.0001023,2]
[406014055,1771553438459,-500.0,0.00010367,2]
[406014056,1771553438468,-1000.0,0.00010452,2]
[406014057,1771553438477,-244.0,0.00010452,2]
[406014058,1771553438487,-500.0,0.00010641,2]
[406014059,1771553438496,-500.0,0.00010915,2]
[406014060,1771553438505,-250.0,0.00010945,2]
[406014061,1771553438515,-250.0,0.00010945,2]
[406014062,1771553438524,-250.0,0.00010945,2]
[406014063,1771553438533,-250.0,0.00010945,2]
[406014064,1771553438542,-250.0,0.00010945,2]
[406014065,1771553438551,-250.0,0.00010945,2]
[406014066,1771553438561,-269.44715171,0.00010945,2]
[406014067,1771553438570,-204.0,0.00011068,2]
[406014068,1771553438579,-506.03705148,0.00011189,2]
[406014069,1771553438588,-354.66107954,0.00011415,2]
[406014070,1771553438715,-251.52683686,0.00011415,2]
[406014071,1771553438725,-1000.0,0.00011497,2]
[406014072,1771553438735,-492.0,0.00011497,2]
[406014073,1771553438744,-1382.0,0.00011586,2]
[406014074,1771553438753,-966.05,0.00012329,2]
[406014075,1771553438763,-805.04,0.00012329,2]
[406014076,1771553438772,-670.86,0.00012329,2]
[406014077,1771553438782,-559.05,0.00012329,2]
[406014078,1771553438791,-465.88,0.00012329,2]
[406014079,1771553438801,-388.23,0.00012329,2]
[406014080,1771553438810,-323.53,0.00012329,2]
[406014081,1771553438819,-269.61,0.00012329,2]
[406014082,1771553438829,-224.67,0.00012329,2]
[406014083,1771553438839,-187.23,0.00012329,2]
[406014084,1771553438849,-156.02,0.00012329,2]
[406014085,1771553438859,-780.13,0.00012329,2]
[406014086,1771553438868,-226.0559537,0.00012329,2]
[406014087,1771553438879,-10964.28451471,0.000125,2]
[406014088,1771553438888,-1000.0,0.00012647,2]
[406014089,1771553438897,-791.0,0.00012647,2]
[406014090,1771553438907,-310.99651219,0.00012899,2]
[406014091,1771553439024,-189.00348781,0.00012899,2]
[406014092,1771553439035,-283.49756453,0.00012899,2]
[406014093,1771553439044,-231.0,0.00013068,2]
[406014094,1771553439053,-500.0,0.00013273,2]
[406014095,1771553439063,-219.17667349,0.00013273,2]
[406014096,1771553439073,-500.0,0.00013273,2]
[406014097,1771553439082,-500.57785001,0.00013273,2]
[406014098,1771553439091,-500.0,0.00013273,2]
[406014099,1771553439101,-500.0,0.00013273,2]
[406014100,1771553439110,-166.4789146,0.00013273,2]
[406014101,1771553439120,-500.0,0.00013273,2]
[406014102,1771553439130,-500.0,0.00013273,2]
[406014103,1771553439140,-500.0,0.00013273,2]
[406014104,1771553439150,-500.0,0.00013273,2]
[406014105,1771553439159,-162.79916142,0.00013273,2]
[406014106,1771553439168,-500.0,0.00013273,2]
[406014107,1771553439178,-265.70653428,0.00013273,2]
[406014108,1771553439187,-500.0,0.00013273,2]
[406014109,1771553439197,-500.0,0.00013273,2]
[406014110,1771553439206,-550.86383407,0.00013273,2]
[406014111,1771553439215,-446.11714664,0.00013273,2]
[406014112,1771553439224,-500.0,0.00013273,2]
[406014113,1771553439233,-500.0,0.00013273,2]
[406014114,1771553439242,-500.0,0.00013273,2]
[406014115,1771553439251,-500.0,0.00013273,2]
[406014116,1771553439260,-500.0,0.00013273,2]
[406014117,1771553439269,-500.0,0.00013273,2]
[406014118,1771553439278,-317.848872,0.00013273,2]
[406014119,1771553439287,-500.0,0.00013273,2]
[406014120,1771553439296,-500.0,0.00013273,2]
[406014121,1771553439305,-500.0,0.00013273,2]
[406014122,1771553439314,-500.0,0.00013273,2]
[406014123,1771553439323,-500.0,0.00013273,2]
[406014124,1771553439334,-500.0,0.00013273,2]
[406014125,1771553439343,-500.0,0.00013273,2]
[406014126,1771553439352,-500.0,0.00013273,2]
[406014127,1771553439361,-550.71992043,0.00013273,2]
[406014128,1771553439373,-500.0,0.00013273,2]
[406014129,1771553439382,-500.0,0.00013273,2]
[406014130,1771553439391,-500.0,0.00013273,2]
[406014131,1771553439400,-500.0,0.00013273,2]
[406014132,1771553439410,-500.0,0.00013273,2]
[406014133,1771553439419,-172.58935279,0.00013273,2]
[406014134,1771553439429,-500.0,0.00013273,2]
[406014135,1771553439438,-500.0,0.00013273,2]
[406014136,1771553439449,-500.0,0.00013273,2]
[406014137,1771553439458,-500.0,0.00013273,2]
[406014138,1771553439467,-500.0,0.00013273,2]
[406014139,1771553439476,-500.0,0.00013273,2]
[406014140,1771553439485,-500.0,0.00013273,2]
[406014141,1771553439494,-262.86981091,0.00013273,2]
[406014142,1771553439503,-500.0,0.00013273,2]
[406014143,1771553439512,-500.0,0.00013273,2]
[406014144,1771553439523,-500.0,0.00013273,2]
[406014145,1771553439534,-500.0,0.00013273,2]
[406014146,1771553439543,-500.0,0.00013273,2]
[406014147,1771553439553,-500.0,0.00013273,2]
[406014148,1771553439563,-500.0,0.00013273,2]
[406014149,1771553439573,-233.76298076,0.00013273,2]
[406014150,1771553439583,-500.0,0.00013273,2]
[406014151,1771553439593,-211.88662983,0.00013273,2]
[406014152,1771553439603,-500.0,0.00013273,2]
[406014153,1771553439615,-500.0,0.00013273,2]
[406014154,1771553439624,-270.25785883,0.00013273,2]
[406014155,1771553439633,-500.0,0.00013273,2]
[406014156,1771553439642,-2893.63654191,0.000135,2]
[406014157,1771553439651,-450.2755726,0.000135,2]
[406014158,1771553439660,-150.0,0.00013673,2]
[406014159,1771553439669,-516.12233088,0.00013698,2]
[406014160,1771553439678,-500.0,0.00013698,2]
[406014161,1771553439687,-500.0,0.00013698,2]
[406014162,1771553439696,-500.0,0.00013698,2]
[406014163,1771553439705,-500.0,0.00013698,2]
[406014164,1771553439714,-500.0,0.00013698,2]
[406014165,1771553439723,-500.0,0.00013698,2]
[406014166,1771553439732,-500.0,0.00013698,2]
[406014167,1771553439741,-500.0,0.00013698,2]
[406014168,1771553439751,-500.0,0.00013698,2]
[406014169,1771553439760,-265.89484718,0.00013698,2]
[406014170,1771553439769,-500.0,0.00013698,2]
[406014171,1771553439778,-500.0,0.00013698,2]
[406014172,1771553439787,-500.0,0.00013698,2]
[406014173,1771553439795,-500.0,0.00013698,2]
[406014174,1771553439804,-500.0,0.00013698,2]
[406014175,1771553439813,-500.0,0.00013698,2]
[406014176,1771553439823,-500.0,0.00013698,2]
[406014177,1771553439832,-500.0,0.00013698,2]
[406014178,1771553439841,-500.0,0.00013698,2]
[406014179,1771553439850,-500.0,0.00013698,2]
[406014180,1771553439859,-213.39568129,0.00013698,2]
[406014181,1771553439869,-500.0,0.00013698,2]
[406014183,1771553439879,-500.0,0.00013698,2]
[406014185,1771553439888,-213.34360556,0.00013698,2]
[406014186,1771553439898,-500.0,0.00013698,2]
[406014187,1771553439907,-500.0,0.00013698,2]
[406014188,1771553439916,-504.27854275,0.00013698,2]
[406014189,1771553439925,-598.92707046,0.00013698,2]
[406014191,1771553439935,-500.0,0.00013698,2]
[406014192,1771553439945,-501.55130174,0.00013698,2]
[406014193,1771553439956,-470.94747059,0.00013699,2]
[406014194,1771553439966,-500.0,0.00013699,2]
[406014195,1771553439975,-1195.526179,0.00013699,2]
[406014197,1771553439985,-987.7267777,0.00013699,2]
[406014199,1771553439994,-1000.0,0.00013699,2]
[406014200,1771553440003,-16070.65748594,0.00013699,2]
[406014215,1771553443072,-573.033,8.573e-05,2]
[406014216,1771553443082,-198.035,8.573e-05,2]
[406014217,1771553443091,-181.0,0.00011573,2]
[406014218,1771553443100,-227.61146753,0.00013699,2]
[406014219,1771553443111,-3256.23330091,0.00013699,2]
[406014226,1771553445770,-500.0,0.00013698,2]
[406014227,1771553445781,-500.0,0.00013698,2]
[406014228,1771553445791,-172.25521972,0.00013698,2]
[406014242,1771554316343,10000.0,6.9e-05,2]
[406014244,1771554356466,8752.0,6.9e-05,2]
[406014247,1771554605480,380.88,6.5e-05,2]
[406014248,1771554605969,380.88,6.5e-05,2]
[406014249,1771554606560,380.88,6.5e-05,2]
[406014250,1771554607144,380.88,6.5e-05,2]
[406014251,1771554607633,380.88,6.6e-05,2]
[406014252,1771554608225,380.88,6.6e-05,2]
[406014253,1771554609316,380.88,6.6e-05,2]
[406014254,1771554610212,380.88,6.6e-05,2]
[406014255,1771554610836,380.88,6.6e-05,2]
[406014256,1771554611447,380.88,6.6e-05,2]
[406014257,1771554612028,380.88,6.6e-05,2]
[406014258,1771554612510,380.88,6.6e-05,2]
[406014259,1771554613102,380.88,6.7e-05,2]
[406014260,1771554613685,380.88,6.7e-05,2]
[406014261,1771554614183,380.88,6.7e-05,2]
[406014262,1771554614789,380.88,6.7e-05,2]
[406014263,1771554615400,380.88,6.7e-05,2]
[406014264,1771554616057,380.88,6.7e-05,2]
[406014265,1771554616653,380.88,6.7e-05,2]
[406014266,1771554617290,380.88,6.8e-05,2]
[406014267,1771554617899,380.88,6.8e-05,2]
[406014268,1771554618361,380.88,6.8e-05,2]
[406014269,1771554618951,380.88,6.8e-05,2]
[406014270,1771554619544,380.88,6.8e-05,2]
[406014271,1771554620157,380.88,6.8e-05,2]
[406014272,1771554620747,380.88,6.8e-05,2]
[406014273,1771554621384,380.88,6.8e-05,2]
[406014274,1771554627496,380.88,6.9e-05,2]
[406014275,1771554628119,380.88,6.9e-05,2]
[406014276,1771554628689,380.88,6.9e-05,2]
[406014277,1771554629277,380.88,6.9e-05,2]
[406014278,1771554629776,380.88,6.9e-05,2]
[406014279,1771554630849,380.88,6.9e-05,2]
[406014280,1771554631344,380.88,6.9e-05,2]
[406014318,1771554632147,-380.88,7e-05,2]
[406014319,1771554632157,-1953.84941915,7.91e-05,2]
[406014328,1771554638103,-380.88,7e-05,2]
[406014329,1771554638112,-380.88,7e-05,2]
[406014330,1771554638121,-380.88,7e-05,2]
[406014331,1771554638130,-380.88,7e-05,2]
[406014332,1771554638139,-380.88,7e-05,2]
[406014333,1771554638152,-117.98299121,7e-05,2]
[406014334,1771554638163,-262.89700879,7e-05,2]
[406014335,1771554638173,-380.88,7e-05,2]
[406014336,1771554638182,-380.88,7.1e-05,2]
[406014337,1771554638191,-380.88,7.1e-05,2]
[406014338,1771554638201,-380.88,7.1e-05,2]
[406014339,1771554638210,-380.88,7.1e-05,2]
[406014340,1771554638218,-3046.15058085,7.91e-05,2]
[406014341,1771554638227,-3576.2395985,7.99e-05,2]
[406014342,1771554638236,-1200.0,8.07e-05,2]
[406014344,1771554638245,-150.0,8.112e-05,2]
[406014346,1771554638253,-300.0,8.401e-05,2]
[406014348,1771554638262,-296.0,8.401e-05,2]
[406014350,1771554638271,-270.0,8.402e-05,2]
[406014351,1771554638280,-300.0,8.569e-05,2]
[406014352,1771554638290,-300.0,8.569e-05,2]
[406014353,1771554638299,-300.0,8.569e-05,2]
[406014354,1771554638308,-300.0,8.569e-05,2]
[406014355,1771554638317,-300.0,8.569e-05,2]
[406014356,1771554638326,-300.0,8.569e-05,2]
[406014357,1771554638336,-300.0,8.569e-05,2]
[406014358,1771554638356,-300.0,8.569e-05,2]
[406014359,1771554638376,-300.0,8.569e-05,2]
[406014360,1771554638394,-300.0,8.569e-05,2]
[406014361,1771554638403,-300.0,8.569e-05,2]
[406014362,1771554638411,-300.0,8.569e-05,2]
[406014363,1771554638426,-300.0,8.569e-05,2]
[406014364,1771554638434,-300.0,8.569e-05,2]
[406014365,1771554638444,-300.0,8.569e-05,2]
[406014366,1771554638452,-261.77841014,8.569e-05,2]
[406014367,1771554638579,-600.0,8.739e-05,2]
[406014368,1771554638588,-1310.0,8.877e-05,2]
[406014369,1771554638597,-420.0,9.241e-05,2]
[406014370,1771554638606,-485.517,9.243e-05,2]
[406014371,1771554638615,-181.0,9.243e-05,2]
[406014372,1771554638625,-720.0,9.613e-05,2]
[406014373,1771554638634,-999.999999,0.0001,3]
[406014374,1771554638643,-177.0,0.00010112,2]
[406014375,1771554638652,-864.0,0.00010575,2]
[406014376,1771554638661,-396.58871926,0.00011369,2]
[406014377,1771554638670,-1000.0,0.00011632,2]
[406014378,1771554638680,-204.0,0.00012112,2]
[406014379,1771554638689,-500.0,0.00012234,2]
[406014380,1771554638698,-287.94416657,0.00012234,2]
[406014381,1771554638707,-427.0,0.00012243,2]
[406014382,1771554638716,-1000.0,0.00012795,2]
[406014383,1771554638725,-244.0,0.00012795,2]
[406014384,1771554638740,-150.0,0.00012987,2]
[406014385,1771554638750,-184.41280302,0.00013042,2]
[406014386,1771554638760,-151.0,0.00013169,2]
[406014387,1771554638770,-151.0,0.00013169,2]
[406014388,1771554638779,-176.150191,0.00013169,2]
[406014389,1771554638788,-151.0,0.0001317,2]
[406014390,1771554638798,-306.0,0.00013244,2]
[406014391,1771554638809,-306.0,0.00013245,2]
[406014392,1771554638818,-306.0,0.00013257,2]
[406014393,1771554638827,-279.714,0.00013261,2]
[406014394,1771554638836,-151.0,0.00013271,2]
[406014395,1771554638845,-151.0,0.00013271,2]
[406014396,1771554638854,-620.66816208,0.00013272,2]
[406014397,1771554638863,-500.0,0.00013273,2]
[406014398,1771554638872,-500.0,0.00013273,2]
[406014399,1771554638881,-500.0,0.00013273,2]
[406014400,1771554638890,-500.0,0.00013273,2]
[406014401,1771554638899,-500.0,0.00013273,2]
[406014402,1771554638908,-500.0,0.00013273,2]
[406014403,1771554638917,-500.0,0.00013273,2]
[406014404,1771554638926,-500.0,0.00013273,2]
[406014405,1771554638934,-500.0,0.00013273,2]
[406014406,1771554638943,-500.0,0.00013273,2]
[406014407,1771554638952,-500.0,0.00013273,2]
[406014408,1771554638962,-500.0,0.00013273,2]
[406014409,1771554638981,-500.0,0.00013273,2]
[406014410,1771554638992,-500.0,0.00013273,2]
[406014411,1771554639001,-500.0,0.00013273,2]
[406014412,1771554639010,-500.0,0.00013273,2]
[406014413,1771554639019,-500.0,0.00013273,2]
[406014414,1771554639028,-500.0,0.00013273,2]
[406014415,1771554639037,-557.60955597,0.00013273,2]
[406014416,1771554639047,-500.0,0.00013273,2]
[406014417,1771554639055,-402.66966422,0.00013273,2]
[406014418,1771554639064,-319.52563134,0.00013273,2]
[406014419,1771554639074,-500.0,0.00013273,2]
[406014420,1771554639084,-500.0,0.00013273,2]
[406014421,1771554639094,-500.0,0.00013273,2]
[406014422,1771554639102,-500.0,0.00013273,2]
[406014423,1771554639111,-500.0,0.00013273,2]
[406014424,1771554639120,-624.49296617,0.00013273,2]
[406014425,1771554639129,-500.0,0.00013273,2]
[406014426,1771554639138,-500.0,0.00013273,2]
[406014427,1771554639148,-500.0,0.00013273,2]
[406014428,1771554639157,-84.48405001,0.00013273,2]
[406014429,1771554639170,-415.51594999,0.00013273,2]
[406014430,1771554639180,-407.25162066,0.00013273,2]
[406014431,1771554639189,-160.23505684,0.00013273,2]
[406014432,1771554639209,-500.0,0.00013273,2]